lending/lending_fUSD_20250122
["ID","MTS","AMOUNT","RATE_DAILY","PERIOD"]
[350011447,1737564667427,-557.94,0.00021095,2]
[350011448,1737564667436,-1662.37,0.00021095,2]
[350011449,1737564667446,-799.87,0.00021095,2]
[350011450,1737564667456,-659.97,0.00021095,2]
[350011451,1737564667466,-1189.42,0.00021095,2]
[350011452,1737564667476,-1115.66,0.00021095,2]
[350011453,1737564667486,-758.88,0.00021095,2]
[350011454,1737564667497,-500.0,0.00021095,2]
[350011455,1737564667506,-897.56,0.00021095,2]
[350011456,1737564667517,-600.73,0.00021095,2]
[350011457,1737564667527,-500.0,0.00021095,2]
[350011458,1737564667537,-1689.73,0.00021095,2]
[350011459,1737564667547,-500.0,0.00021095,2]
[350011460,1737564667556,-1289.84,0.00021095,2]
[350011461,1737564667566,-948.07,0.00021095,2]
[350011462,1737564667576,-500.0,0.00021095,2]
[350011463,1737564667587,-1292.99,0.00021095,2]
[350011464,1737564667608,-987.12,0.00021095,2]
[350011465,1737564667622,-500.0,0.00021095,2]
[350011466,1737564667632,-1179.31,0.00021095,2]
[350011467,1737564667642,-500.0,0.00021095,2]
[350011468,1737564667652,-1540.0,0.00021095,2]
[350011469,1737564667663,-500.0,0.00021095,2]
[350011470,1737564667673,-576.36,0.00021095,2]
[350011471,1737564667684,-1949.27,0.00021095,2]
[350011472,1737564667693,-1084.18,0.00021095,2]
[350011473,1737564667703,-2520.38,0.00021095,2]
[350011474,1737564667713,-553.52,0.00021095,2]
[350011475,1737564667723,-5054.1,0.00021095,2]
[350011476,1737564667733,-668.03,0.00021095,2]
[350011477,1737564667743,-933.97,0.00021095,2]
[350011478,1737564667753,-1396.54,0.00021095,2]
[350011479,1737564667763,-2807.04,0.00021095,2]
[350011480,1737564667773,-640.64,0.00021095,2]
[350011481,1737564667782,-861.9,0.00021095,2]
[350011482,1737564667792,-742.82,0.00021095,2]
[350011483,1737564667801,-500.0,0.00021095,2]
[350011484,1737564667811,-2622.27,0.00021095,2]
[350011485,1737564667821,-1147.71,0.00021095,2]
[350011486,1737564667833,-1397.58,0.00021095,2]
[350011487,1737564667843,-644.84,0.00021095,2]
[350011488,1737564667852,-500.0,0.00021095,2]
[350011489,1737564667862,-876.86,0.00021095,2]
[350011490,1737564667872,-1969.95,0.00021095,2]
[350011491,1737564667882,-1623.55,0.00021095,2]
[350011492,1737564667893,-1125.49,0.00021095,2]
[350011493,1737564667905,-988.97,0.00021095,2]
[350011494,1737564667916,-500.0,0.00021095,2]
[350011495,1737564667925,-1383.41,0.00021095,2]
[350011496,1737564667936,-3375.42,0.00021095,2]
[350011497,1737564667946,-933.59,0.00021095,2]
[350011498,1737564667956,-500.0,0.00021095,2]
[350011499,1737564667966,-877.46,0.00021095,2]
[350011500,1737564667977,-674.84,0.00021095,2]
[350011501,1737564667987,-788.35,0.00021095,2]
[350011502,1737564667997,-2196.11,0.00021095,2]
[350011503,1737564668007,-1102.3,0.00021095,2]
[350011504,1737564668017,-802.14,0.00021095,2]
[350011505,1737564668026,-500.0,0.00021095,2]
[350011506,1737564668037,-1948.77,0.00021095,2]
[350011507,1737564668046,-2637.93,0.00021095,2]
[350011508,1737564668057,-1505.78,0.00021095,2]
[350011509,1737564668068,-500.0,0.00021095,2]
[350011510,1737564668078,-994.03,0.00021095,2]
[350011511,1737564668092,-637.51,0.00021095,2]
[350011512,1737564668102,-866.11,0.00021095,2]
[350011513,1737564668112,-524.7,0.00021095,2]
[350011514,1737564668122,-500.0,0.00021095,2]
[350011515,1737564668132,-895.62,0.00021095,2]
[350011516,1737564668142,-709.66,0.00021095,2]
[350011517,1737564668152,-500.0,0.00021095,2]
[350011518,1737564668162,-1296.18,0.00021095,2]
[350011519,1737564668172,-1221.77,0.00021095,2]
[350011520,1737564668181,-500.0,0.00021095,2]
[350011521,1737564668191,-1308.26,0.00021095,2]
[350011522,1737564668201,-1266.64,0.00021095,2]
[350011523,1737564668211,-550.94592041,0.00021095,2]
[350011524,1737564668220,-1024.02,0.00021095,2]
[350011525,1737564668230,-933.28,0.00021095,2]
[350011526,1737564668240,-929.73,0.00021095,2]
[350011527,1737564668250,-2952.64,0.00021095,2]
[350011528,1737564668259,-1159.37,0.00021095,2]
[350011529,1737564668269,-817.08,0.00021095,2]
[350011530,1737564668279,-522.56,0.00021095,2]
[350011531,1737564668289,-1594.75,0.00021095,2]
[350011532,1737564668299,-500.0,0.00021095,2]
[350011533,1737564668309,-520.22502091,0.00021095,2]
[350011534,1737564668319,-500.0,0.00021095,2]
[350011535,1737564668328,-1319.68,0.00021095,2]
[350011536,1737564668340,-500.0,0.00021095,2]
[350011537,1737564668350,-943.47,0.00021095,2]
[350011538,1737564668360,-556.38,0.00021095,2]
[350011539,1737564668369,-979.95,0.00021095,2]
[350011540,1737564668379,-2180.0,0.00021095,2]
[350011541,1737564668388,-500.0,0.00021095,2]
[350011542,1737564668398,-500.0,0.00021095,2]
[350011543,1737564668407,-1000.0,0.00021095,2]
[350011544,1737564668417,-1054.44,0.00021095,2]
[350011545,1737564668427,-500.0,0.00021095,2]
[350011546,1737564668436,-506.05,0.00021095,2]
[350011547,1737564668446,-599.54,0.00021095,2]
[350011548,1737564668457,-500.0,0.00021095,2]
[350011549,1737564668467,-616.56,0.00021095,2]
[350011550,1737564668477,-703.23,0.00021095,2]
[350011551,1737564668487,-1469.11,0.00021095,2]
[350011552,1737564668496,-500.0,0.00021095,2]
[350011553,1737564668506,-500.0,0.00021095,2]
[350011554,1737564668516,-500.0,0.00021095,2]
[350011555,1737564668526,-500.0,0.00021095,2]
[350011556,1737564668536,-500.0,0.00021095,2]
[350011557,1737564668546,-500.0,0.00021095,2]
[350011558,1737564668555,-1729.24,0.00021095,2]
[350011559,1737564668566,-1622.79,0.00021095,2]
[350011560,1737564668576,-563.14,0.00021095,2]
[350011561,1737564668587,-500.0,0.00021095,2]
[350011562,1737564668597,-2613.81,0.00021095,2]
[350011563,1737564668607,-904.26,0.00021095,2]
[350011564,1737564668617,-548.46,0.00021095,2]
[350011565,1737564668627,-931.41,0.00021095,2]
[350011566,1737564668636,-2218.6,0.00021095,2]
[350011567,1737564668646,-500.0,0.00021095,2]
[350011568,1737564668656,-150.0,0.00021109,2]
[350011569,1737564668665,-150.0,0.00021115,2]
[350011570,1737564668675,-714.99498812,0.00021121,2]
[350011571,1737564668685,-150.0,0.00021123,2]
[350011572,1737564668695,-150.0,0.00021125,2]
[350011573,1737564668704,-150.0,0.00021145,2]
[350011574,1737564668714,-1347.97,0.00021153,2]
[350011575,1737564668724,-2999.97,0.00021156,2]
[350011576,1737564668734,-1458.0,0.00021177,2]
[350011577,1737564668743,-268.35,0.00021178,2]
[350011578,1737564668753,-150.0,0.00021181,2]
[350011579,1737564668763,-2999.99,0.00021186,2]
[350011580,1737564668773,-150.0,0.00021201,2]
[350011581,1737564668783,-150.0,0.00021208,2]
[350011582,1737564668793,-4112.1530931,0.0002123,2]
[350011583,1737564668803,-2000.0,0.00021239,2]
[350011584,1737564668812,-200.0,0.00021239,2]
[350011585,1737564668823,-924.0006285,0.00021273,2]
[350011586,1737564668833,-677.58006963,0.00021273,2]
[350011587,1737564668842,-87653.51790873,0.000213,2]
[350011588,1737564668852,-150.0,0.00021313,2]
[350011589,1737564668861,-500.0,0.0002133,2]
[350011590,1737564668871,-500.0,0.0002133,2]
[350011591,1737564668880,-1065.01,0.0002133,2]
[350011592,1737564668890,-500.0,0.0002133,2]
[350011593,1737564668904,-987.33,0.0002133,2]
[350011594,1737564668914,-842.24,0.0002133,2]
[350011595,1737564668923,-500.0,0.0002133,2]
[350011596,1737564668933,-500.0,0.0002133,2]
[350011597,1737564668943,-759.98,0.0002133,2]
[350011598,1737564668953,-500.0,0.0002133,2]
[350011599,1737564668963,-500.0,0.0002133,2]
[350011600,1737564668973,-618.44,0.0002133,2]
[350011601,1737564668982,-500.0,0.0002133,2]
[350011602,1737564668992,-222.2,0.00021333,2]
[350011603,1737564669002,-150.0,0.00021336,2]
[350011604,1737564669012,-306.0,0.00021342,2]
[350011605,1737564669022,-150.0,0.00021347,2]
[350011606,1737564669031,-500.0,0.00021369,2]
[350011607,1737564669041,-500.0,0.00021369,2]
[350011608,1737564669050,-500.0,0.00021369,2]
[350011609,1737564669060,-700.16,0.00021369,2]
[350011610,1737564669069,-653.57,0.00021369,2]
[350011611,1737564669079,-500.0,0.00021369,2]
[350011612,1737564669090,-500.0,0.00021369,2]
[350011613,1737564669099,-501.2,0.00021369,2]
[350011614,1737564669109,-578.29,0.00021369,2]
[350011615,1737564669118,-815.2,0.00021369,2]
[350011616,1737564669128,-500.0,0.00021369,2]
[350011617,1737564669137,-500.0,0.00021369,2]
[350011618,1737564669147,-500.0,0.00021369,2]
[350011619,1737564669156,-573.29,0.00021369,2]
[350011620,1737564669165,-500.0,0.00021369,2]
[350011621,1737564669174,-500.0,0.00021369,2]
[350011622,1737564669184,-597.93,0.00021369,2]
[350011623,1737564669193,-568.16,0.00021369,2]
[350011624,1737564669203,-500.0,0.00021369,2]
[350011625,1737564669212,-693.59,0.00021369,2]
[350011626,1737564669221,-774.01,0.00021369,2]
[350011627,1737564669231,-500.0,0.00021369,2]
[350011628,1737564669241,-678.729105,0.00021369,2]
[350011629,1737564669250,-643.99,0.00021369,2]
[350011630,1737564669260,-500.0,0.00021369,2]
[350011631,1737564669269,-500.0,0.00021369,2]
[350011632,1737564669279,-500.0,0.00021369,2]
[350011633,1737564669289,-921.053606,0.00021369,2]
[350011634,1737564669299,-500.0,0.00021369,2]
[350011635,1737564669309,-530.18,0.00021369,2]
[350011636,1737564669463,-500.0,0.00021369,2]
[350011637,1737564669474,-500.0,0.00021369,2]
[350011638,1737564669484,-500.0,0.00021369,2]
[350011639,1737564669493,-500.0,0.00021369,2]
[350011640,1737564669503,-500.0,0.00021369,2]
[350011641,1737564669513,-500.0,0.00021369,2]
[350011642,1737564669522,-500.0,0.00021369,2]
[350011643,1737564669532,-500.0,0.00021369,2]
[350011644,1737564669546,-855.78,0.00021369,2]
[350011645,1737564669555,-500.0,0.00021369,2]
[350011646,1737564669564,-709.74,0.00021369,2]
[350011647,1737564669574,-826.55,0.00021369,2]
[350011648,1737564669585,-500.0,0.00021369,2]
[350011649,1737564669595,-500.0,0.00021369,2]
[350011650,1737564669604,-500.0,0.00021369,2]
[350011651,1737564669614,-662.96,0.00021369,2]
[350011652,1737564669623,-679.12,0.00021369,2]
[350011653,1737564669632,-500.0,0.00021369,2]
[350011654,1737564669641,-512.16,0.00021369,2]
[350011655,1737564669651,-500.0,0.00021369,2]
[350011656,1737564669660,-1005.12,0.00021369,2]
[350011657,1737564669672,-500.0,0.00021369,2]
[350011658,1737564669681,-500.0,0.00021369,2]
[350011659,1737564669691,-698.09,0.00021369,2]
[350011660,1737564669701,-628.59,0.00021369,2]
[350011661,1737564669710,-539.62,0.00021369,2]
[350011662,1737564669720,-500.0,0.00021369,2]
[350011663,1737564669730,-500.0,0.00021369,2]
[350011664,1737564669740,-740.64,0.00021369,2]
[350011665,1737564669750,-960.26,0.00021369,2]
[350011666,1737564669760,-932.4,0.00021369,2]
[350011667,1737564669769,-776.07,0.00021369,2]
[350011668,1737564669779,-500.0,0.00021369,2]
[350011669,1737564669787,-500.0,0.00021369,2]
[350011670,1737564669796,-500.0,0.00021369,2]
[350011671,1737564669805,-880.8,0.00021369,2]
[350011672,1737564669816,-500.0,0.00021369,2]
[350011673,1737564669826,-827.35,0.00021369,2]
[350011674,1737564669836,-984.49,0.00021369,2]
[350011675,1737564669845,-675.84,0.00021369,2]
[350011676,1737564669855,-624.4,0.00021369,2]
[350011677,1737564669864,-533.95,0.00021369,2]
[350011678,1737564669874,-798.72,0.00021369,2]
[350011679,1737564669883,-851.17,0.00021369,2]
[350011680,1737564669895,-754.56,0.00021369,2]
[350011681,1737564669906,-500.0,0.00021369,2]
[350011682,1737564669916,-500.0,0.00021369,2]
[350011683,1737564669926,-940.6,0.00021369,2]
[350011684,1737564669935,-500.0,0.00021369,2]
[350011685,1737564669945,-937.01,0.00021369,2]
[350011686,1737564669954,-1249.64,0.00021369,2]
[350011687,1737564669964,-500.0,0.00021369,2]
[350011688,1737564669975,-500.0,0.00021369,2]
[350011689,1737564669985,-557.94,0.00021369,2]
[350011690,1737564669994,-1662.37,0.00021369,2]
[350011691,1737564670004,-799.87,0.00021369,2]
[350011692,1737564670013,-659.97,0.00021369,2]
[350011693,1737564670023,-1189.42,0.00021369,2]
[350011694,1737564670033,-1115.66,0.00021369,2]
[350011695,1737564670042,-758.88,0.00021369,2]
[350011696,1737564670053,-500.0,0.00021369,2]
[350011697,1737564670063,-897.56,0.00021369,2]
[350011698,1737564670073,-600.73,0.00021369,2]
[350011699,1737564670083,-500.0,0.00021369,2]
[350011700,1737564670093,-1689.73,0.00021369,2]
[350011701,1737564670102,-500.0,0.00021369,2]
[350011702,1737564670112,-1289.84,0.00021369,2]
[350011703,1737564670121,-948.07,0.00021369,2]
[350011704,1737564670131,-500.0,0.00021369,2]
[350011705,1737564670140,-1292.99,0.00021369,2]
[350011706,1737564670149,-987.12,0.00021369,2]
[350011707,1737564670159,-402.01991689,0.00021369,2]
[350011708,1737564670168,-1179.31,0.00021369,2]
[350011709,1737564670177,-500.0,0.00021369,2]
[350011710,1737564670186,-1540.0,0.00021369,2]
[350011711,1737564670196,-500.0,0.00021369,2]
[350011712,1737564670206,-576.36,0.00021369,2]
[350011713,1737564670215,-1949.27,0.00021369,2]
[350011714,1737564670225,-1084.18,0.00021369,2]
[350011715,1737564670235,-2520.38,0.00021369,2]
[350011716,1737564670246,-553.52,0.00021369,2]
[350011717,1737564670256,-5054.1,0.00021369,2]
[350011718,1737564670265,-668.03,0.00021369,2]
[350011719,1737564670275,-933.97,0.00021369,2]
[350011720,1737564670284,-1396.54,0.00021369,2]
[350011721,1737564670294,-2807.04,0.00021369,2]
[350011722,1737564670303,-640.64,0.00021369,2]
[350011723,1737564670313,-861.9,0.00021369,2]
[350011724,1737564670322,-742.82,0.00021369,2]
[350011725,1737564670332,-474.88978044,0.00021369,2]
[350011726,1737564670342,-2622.27,0.00021369,2]
[350011727,1737564670352,-1147.71,0.00021369,2]
[350011728,1737564670361,-1397.58,0.00021369,2]
[350011729,1737564670370,-644.84,0.00021369,2]
[350011730,1737564670380,-500.0,0.00021369,2]
[350011731,1737564670390,-876.86,0.00021369,2]
[350011732,1737564670399,-1969.95,0.00021369,2]
[350011733,1737564670409,-1623.55,0.00021369,2]
[350011734,1737564670418,-1125.49,0.00021369,2]
[350011735,1737564670428,-988.97,0.00021369,2]
[350011736,1737564670437,-500.0,0.00021369,2]
[350011737,1737564670446,-1383.41,0.00021369,2]
[350011738,1737564670456,-3375.42,0.00021369,2]
[350011739,1737564670465,-933.59,0.00021369,2]
[350011740,1737564670474,-500.0,0.00021369,2]
[350011741,1737564670483,-877.46,0.00021369,2]
[350011742,1737564670493,-674.84,0.00021369,2]
[350011743,1737564670503,-788.35,0.00021369,2]
[350011744,1737564670512,-2196.11,0.00021369,2]
[350011745,1737564670521,-1102.3,0.00021369,2]
[350011746,1737564670532,-802.14,0.00021369,2]
[350011747,1737564670541,-441.23288377,0.00021369,2]
[350011748,1737564670550,-1948.77,0.00021369,2]
[350011749,1737564670560,-1505.78,0.00021369,2]
[350011750,1737564670569,-2637.93,0.00021369,2]
[350011751,1737564670579,-500.0,0.00021369,2]
[350011752,1737564670590,-994.03,0.00021369,2]
[350011753,1737564670600,-637.51,0.00021369,2]
[350011754,1737564670609,-866.11,0.00021369,2]
[350011755,1737564670618,-524.7,0.00021369,2]
[350011756,1737564670627,-500.0,0.00021369,2]
[350011757,1737564670636,-895.62,0.00021369,2]
[350011758,1737564670646,-709.66,0.00021369,2]
[350011759,1737564670655,-500.0,0.00021369,2]
[350011760,1737564670665,-1296.18,0.00021369,2]
[350011761,1737564670675,-1221.77,0.00021369,2]
[350011762,1737564670684,-500.0,0.00021369,2]
[350011763,1737564670693,-1308.26,0.00021369,2]
[350011764,1737564670702,-1266.64,0.00021369,2]
[350011765,1737564670711,-1024.02,0.00021369,2]
[350011766,1737564670721,-933.28,0.00021369,2]
[350011767,1737564670730,-929.73,0.00021369,2]
[350011768,1737564670740,-2952.64,0.00021369,2]
[350011769,1737564670750,-1159.37,0.00021369,2]
[350011770,1737564670759,-817.08,0.00021369,2]
[350011771,1737564670769,-522.56,0.00021369,2]
[350011772,1737564670778,-1594.75,0.00021369,2]
[350011773,1737564670788,-500.0,0.00021369,2]
[350011774,1737564670797,-500.0,0.00021369,2]
[350011775,1737564670806,-1319.68,0.00021369,2]
[350011776,1737564670816,-500.0,0.00021369,2]
[350011777,1737564670825,-943.47,0.00021369,2]
[350011778,1737564670836,-556.38,0.00021369,2]
[350011779,1737564670846,-979.95,0.00021369,2]
[350011780,1737564670856,-2180.0,0.00021369,2]
[350011781,1737564670865,-530.60900309,0.00021369,2]
[350011782,1737564670875,-500.0,0.00021369,2]
[350011783,1737564670884,-1000.0,0.00021369,2]
[350011784,1737564670898,-1054.44,0.00021369,2]
[350011785,1737564670908,-500.0,0.00021369,2]
[350011786,1737564670917,-599.54,0.00021369,2]
[350011787,1737564670926,-506.05,0.00021369,2]
[350011788,1737564670936,-500.0,0.00021369,2]
[350011789,1737564670945,-703.23,0.00021369,2]
[350011790,1737564670954,-616.56,0.00021369,2]
[350011791,1737564670964,-1469.11,0.00021369,2]
[350011792,1737564670973,-500.0,0.00021369,2]
[350011793,1737564670983,-500.0,0.00021369,2]
[350011794,1737564670992,-500.0,0.00021369,2]
[350011795,1737564671002,-500.0,0.00021369,2]
[350011796,1737564671011,-500.0,0.00021369,2]
[350011797,1737564671021,-500.0,0.00021369,2]
[350011798,1737564671030,-1729.24,0.00021369,2]
[350011799,1737564671039,-1622.79,0.00021369,2]
[350011800,1737564671049,-563.14,0.00021369,2]
[350011801,1737564671059,-500.0,0.00021369,2]
[350011802,1737564671068,-2613.81,0.00021369,2]
[350011803,1737564671078,-904.26,0.00021369,2]
[350011804,1737564671090,-548.46,0.00021369,2]
[350011805,1737564671100,-931.41,0.00021369,2]
[350011806,1737564671109,-2218.6,0.00021369,2]
[350011807,1737564671118,-500.0,0.00021369,2]
[350011808,1737564671128,-165.49128811,0.0002137,4]
[350011809,1737564671138,-150.0,0.0002137,4]
[350011810,1737564671149,-150.0,0.0002137,4]
[350011811,1737564671158,-150.44676188,0.0002137,4]
[350011812,1737564671168,-150.0,0.0002137,4]
[350011813,1737564671177,-150.0,0.0002137,4]
[350011814,1737564671187,-5000.0,0.0002137,2]
[350011815,1737564671196,-150.0,0.00021373,2]
[350011816,1737564671205,-1989.0,0.00021377,2]
[350011817,1737564671214,-1864.92260067,0.00021378,2]
[350011818,1737564671223,-516.45,0.00021379,2]
[350011819,1737564671232,-749897.39467627,0.0002138,2]
[350011820,1737564671242,-165.49128811,0.0002138,4]
[350011821,1737564671251,-150.0,0.00021388,4]
[350011822,1737564671261,-165.49128811,0.0002139,4]
[350011823,1737564671270,-1442.8,0.000214,2]
[350011824,1737564671279,-6585.0733089,0.000214,2]
[350011825,1737564671503,-320.687975,0.00020883,2]
[350011826,1737564671684,-180.94359577,0.00014165,7]
[350011827,1737564671694,-500.0,0.00019178,2]
[350011828,1737564671703,-470.44238785,0.00020792,2]
[350011829,1737564671713,-149.75441285,0.00020883,2]
[350011830,1737564671722,-582.87467083,0.00021176,2]
[350011831,1737564671731,-582.87467083,0.00021279,2]
[350011832,1737564671740,-582.87467083,0.00021383,2]
[350011833,1737564671749,-1913.79844483,0.000214,2]
[350011834,1737564671760,-381.24359812,0.000214,2]
[350011835,1737564671771,-215688.77912417,0.000214,2]
[350011836,1737564671781,-350480.20834452,0.000214,2]
[350011837,1737564671790,-3338.31,0.000214,2]
[350011838,1737564671800,-1007.0,0.000214,2]
[350011839,1737564671809,-165.49128811,0.00021401,4]
[350011840,1737564671818,-150.0,0.00021405,4]
[350011841,1737564671827,-150.0,0.00021407,4]
[350011842,1737564671839,-150.0,0.00021407,2]
[350011843,1737564671849,-165.49128811,0.00021411,4]
[350011844,1737564671859,-165.49128811,0.00021421,4]
[350011845,1737564671867,-150.0,0.00021425,4]
[350011846,1737564671877,-165.49128811,0.00021431,4]
[350011847,1737564671887,-150.0,0.0002144,4]
[350011848,1737564671899,-165.49128811,0.00021442,4]
[350011849,1737564671909,-150.0,0.00021444,4]
[350011850,1737564671918,-165.49128811,0.00021452,4]
[350011851,1737564671927,-2019.0,0.00021457,2]
[350011852,1737564671937,-1270.0,0.00021457,2]
[350011853,1737564671947,-567.0,0.00021457,2]
[350011854,1737564671956,-698.355,0.00021457,2]
[350011855,1737564671965,-150.0,0.00021457,2]
[350011856,1737564671977,-1032.554,0.00021457,2]
[350011857,1737564671987,-1259.0,0.00021457,2]
[350011858,1737564671996,-781.0,0.00021457,2]
[350011859,1737564672007,-906.0,0.00021457,2]
[350011860,1737564672016,-2865.81,0.00021457,2]
[350011861,1737564672025,-536.0,0.00021457,2]
[350011862,1737564672035,-3984.0,0.00021457,2]
[350011863,1737564672045,-3903.0,0.00021457,2]
[350011864,1737564672054,-150.0,0.00021457,2]
[350011865,1737564672064,-1176.0,0.00021457,2]
[350011866,1737564672074,-150.0,0.00021462,2]
[350011867,1737564672083,-165.49128811,0.00021462,4]
[350011868,1737564672092,-150.0,0.00021462,4]
[350011869,1737564672101,-150.0,0.00021462,4]
[350011870,1737564672110,-165.49128811,0.00021472,4]
[350011871,1737564672119,-150.0,0.00021475,4]
[350011872,1737564672128,-150.0,0.0002148,4]
[350011873,1737564672137,-165.49128811,0.00021483,4]
[350011874,1737564672147,-152.0,0.00021483,3]
[350011875,1737564672156,-582.87467083,0.00021486,2]
[350011876,1737564672165,-165.49128811,0.00021493,4]
[350011877,1737564672174,-150.0,0.00021499,4]
[350011878,1737564672183,-15743.4,0.000215,7]
[350011879,1737564672193,-231.0,0.000215,2]
[350011880,1737564672202,-366.0,0.000215,2]
[350011881,1737564672212,-745.0,0.000215,2]
[350011882,1737564672221,-165.49128811,0.00021503,4]
[350011883,1737564672230,-265.48820326,0.00021506,2]
[350011884,1737564672239,-150.0,0.0002151,4]
[350011885,1737564672248,-165.49128811,0.00021513,4]
[350011886,1737564672257,-516.45,0.00021516,2]
[350011887,1737564672266,-150.0,0.00021517,4]
[350011888,1737564672275,-165.49128811,0.00021524,4]
[350011889,1737564672285,-165.49128811,0.00021534,4]
[350011890,1737564672294,-150.0,0.00021536,4]
[350011891,1737564672303,-500.0,0.00021536,2]
[350011892,1737564672313,-1265.97264432,0.00021543,2]
[350011893,1737564672321,-611.59973618,0.00021543,2]
[350011894,1737564672331,-1180.31366162,0.00021543,2]
[350011895,1737564672340,-150.01379271,0.00021543,3]
[350011896,1737564672349,-165.49128811,0.00021544,4]
[350011897,1737564672358,-150.0,0.00021545,4]
[350011898,1737564672367,-165.49128811,0.00021554,4]
[350011899,1737564672377,-150.0,0.00021554,4]
[350011900,1737564672385,-150.0,0.00021554,4]
[350011901,1737564672394,-320.5182619,0.0002156,2]
[350011902,1737564672404,-150.0,0.00021563,2]
[350011903,1737564672414,-165.49128811,0.00021564,4]
[350011904,1737564672423,-150.0,0.00021567,2]
[350011905,1737564672433,-150.0,0.00021573,4]
[350011906,1737564672442,-150.0,0.00021573,2]
[350011907,1737564672603,-165.49128811,0.00021575,4]
[350011908,1737564672613,-150.0,0.0002158,4]
[350011909,1737564672623,-165.49128811,0.00021585,4]
[350011910,1737564672632,-924.0006285,0.00021586,2]
[350011911,1737564672641,-677.58006963,0.00021586,2]
[350011912,1737564672651,-582.87467083,0.0002159,2]
[350011913,1737564672660,-150.0,0.00021591,4]
[350011914,1737564672670,-165.49128811,0.00021595,4]
[350011915,1737564672679,-1989.0,0.00021598,2]
[350011916,1737564672688,-500.0,0.00021604,2]
[350011917,1737564672697,-500.0,0.00021604,2]
[350011918,1737564672706,-1065.01,0.00021604,2]
[350011919,1737564672715,-500.0,0.00021604,2]
[350011920,1737564672725,-987.33,0.00021604,2]
[350011921,1737564672734,-842.24,0.00021604,2]
[350011922,1737564672743,-500.0,0.00021604,2]
[350011923,1737564672753,-500.0,0.00021604,2]
[350011924,1737564672762,-759.98,0.00021604,2]
[350011925,1737564672772,-500.0,0.00021604,2]
[350011926,1737564672781,-500.0,0.00021604,2]
[350011927,1737564672790,-618.44,0.00021604,2]
[350011928,1737564672799,-500.0,0.00021604,2]
[350011929,1737564672808,-165.49128811,0.00021605,4]
[350011930,1737564672818,-150.0,0.0002161,4]
[350011931,1737564672827,-150.0,0.00021615,4]
[350011932,1737564672837,-165.49128811,0.00021616,4]
[350011933,1737564672847,-150.0,0.00021619,2]
[350011934,1737564672856,-165.49128811,0.00021626,4]
[350011935,1737564672865,-150.0,0.00021628,4]
[350011936,1737564672875,-165.49128811,0.00021636,4]
[350011937,1737564672884,-286.1,0.00021643,2]
[350011938,1737564672894,-500.0,0.00021643,2]
[350011939,1737564672905,-500.0,0.00021643,2]
[350011940,1737564672914,-700.16,0.00021643,2]
[350011941,1737564672924,-653.57,0.00021643,2]
[350011942,1737564672934,-500.0,0.00021643,2]
[350011943,1737564672944,-500.0,0.00021643,2]
[350011944,1737564672953,-501.2,0.00021643,2]
[350011945,1737564672962,-578.29,0.00021643,2]
[350011946,1737564672971,-815.2,0.00021643,2]